bitfinex/quotes_BTCUSD_20241009
["timestamp","ask_amount","ask_price","bid_price","bid_amount"]
[1728496200238,0.002,61827.0,61826.0,0.53090164]
[1728496200451,0.002,61827.0,61826.0,0.53390164]
[1728496201352,0.001,61827.0,61826.0,0.53090164]
[1728496201570,0.001,61827.0,61826.0,0.53390164]
[1728496201571,0.002,61827.0,61826.0,0.53390164]
[1728496201789,0.001,61827.0,61826.0,0.53390164]
[1728496203842,0.002,61827.0,61826.0,0.53790164]
[1728496204074,0.001,61827.0,61826.0,0.53990164]
[1728496204334,0.00164,61828.0,61827.0,0.166741]
[1728496204541,0.00164,61828.0,61827.0,0.57339576]
[1728496204987,0.00164,61828.0,61827.0,0.65489576]
[1728496205214,0.00164,61828.0,61827.0,0.74629576]
[1728496205444,0.00164,61828.0,61827.0,0.74429576]
[1728496205661,0.00264,61828.0,61827.0,0.75429576]
[1728496206622,0.00364,61828.0,61827.0,0.76529576]
[1728496208971,0.00364,61828.0,61827.0,0.67389576]
[1728496212027,0.00364,61828.0,61827.0,0.44357864]
[1728496213804,0.00364,61828.0,61827.0,0.46657864]
[1728496216266,0.00364,61828.0,61827.0,0.36657864]
[1728496216478,0.00364,61828.0,61827.0,0.34357864]
[1728496216479,0.09564,61828.0,61827.0,0.34357864]
[1728496217351,0.09464,61828.0,61827.0,0.33357864]
[1728496217573,0.09464,61828.0,61827.0,0.32757864]
[1728496217803,0.09564,61828.0,61827.0,0.33457864]
[1728496218026,0.09564,61828.0,61827.0,0.32257864]
[1728496218027,0.09464,61828.0,61827.0,0.32257864]
[1728496218261,0.09464,61828.0,61827.0,0.32757864]
[1728496218465,0.09664,61828.0,61827.0,0.33457864]
[1728496221639,0.09664,61828.0,61827.0,0.012]
[1728496221855,0.258379,61828.0,61827.0,0.012]
[1728496222322,0.338679,61828.0,61827.0,0.012]
[1728496222787,0.36402707,61828.0,61827.0,0.012]
[1728496223502,0.36302707,61828.0,61827.0,0.007]
[1728496223752,0.36402707,61828.0,61827.0,0.011]
[1728496223956,0.20128807,61828.0,61827.0,0.01182]
[1728496224169,0.19928807,61828.0,61827.0,0.00082]
[1728496224584,0.20028807,61828.0,61827.0,0.170561]
[1728496224807,0.02798807,61828.0,61827.0,0.45421576]
[1728496225026,0.02798807,61828.0,61827.0,0.47221576]
[1728496225027,0.02698807,61828.0,61827.0,0.47221576]
[1728496225243,0.02698807,61828.0,61827.0,0.47521576]
[1728496225459,0.02698807,61828.0,61827.0,0.35239864]
[1728496227274,0.02698807,61828.0,61827.0,0.32939864]
[1728496227492,0.12648807,61828.0,61827.0,0.32939864]
[1728496229687,0.10114,61828.0,61827.0,0.32939864]
[1728496230766,0.119464,61828.0,61827.0,0.32939864]
[1728496231201,0.10114,61828.0,61827.0,0.16765764]
[1728496231618,0.10114,61828.0,61827.0,0.00682]
[1728496231833,0.10114,61828.0,61827.0,0.168561]
[1728496232723,0.12648702,61828.0,61827.0,0.168561]
[1728496232948,0.12648702,61828.0,61827.0,0.35239864]
[1728496232949,0.02698702,61828.0,61827.0,0.35239864]
[1728496233857,0.02698702,61828.0,61827.0,0.34939864]
[1728496234083,0.02698702,61828.0,61827.0,0.34639864]
[1728496234300,0.02698702,61828.0,61827.0,0.35039864]
[1728496234301,0.02798702,61828.0,61827.0,0.35039864]
[1728496234517,0.02798702,61828.0,61827.0,0.35439864]
[1728496234721,0.02698702,61828.0,61827.0,0.34639864]
[1728496235057,0.02698702,61828.0,61827.0,0.35039864]
[1728496235150,0.02798702,61828.0,61827.0,0.35039864]
[1728496235575,0.02898702,61828.0,61827.0,0.35539864]
[1728496238938,0.02898702,61828.0,61827.0,0.36285101]
[1728496239370,0.02898702,61828.0,61827.0,0.33985101]
[1728496239733,0.00364,61828.0,61827.0,0.33985101]
[1728496242296,0.00364,61828.0,61827.0,0.33985101]
[1728496242805,0.02898554,61828.0,61827.0,0.33985101]
[1728496249596,0.00364,61828.0,61827.0,0.33985101]
[1728496252668,0.02898564,61828.0,61827.0,0.33985101]
[1728496256088,0.12318564,61828.0,61827.0,0.33239864]
[1728496256525,0.12318564,61828.0,61827.0,0.171561]
[1728496256905,0.13039217,61828.0,61827.0,0.171561]
[1728496259068,0.01084653,61828.0,61827.0,0.35539864]
[1728496259300,0.00364,61828.0,61827.0,0.35539864]
[1728496259965,0.00364,61828.0,61827.0,0.46239864]
[1728496260194,0.00364,61828.0,61827.0,0.63799864]
[1728496260447,0.00364,61828.0,61827.0,0.63599864]
[1728496261145,0.00364,61828.0,61827.0,0.63799864]
[1728496262049,0.00364,61828.0,61827.0,0.63599864]
[1728496262276,0.00364,61828.0,61827.0,0.35539864]
[1728496262495,0.02898294,61828.0,61827.0,0.35539864]
[1728496262711,0.02898294,61828.0,61827.0,0.33239864]
[1728496267667,0.19072194,61828.0,61827.0,0.00982]
[1728496268381,0.18972194,61828.0,61827.0,0.00582]
[1728496268567,0.18972194,61828.0,61827.0,0.00982]
[1728496269238,0.18972194,61828.0,61827.0,0.00582]
[1728496269462,0.18972194,61828.0,61827.0,0.00982]
[1728496269694,0.164379,61828.0,61827.0,0.00982]
[1728496270140,0.163379,61828.0,61827.0,0.00482]
[1728496270564,0.163379,61828.0,61827.0,0.00982]
[1728496270785,0.163379,61828.0,61827.0,0.00482]
[1728496270978,0.163379,61828.0,61827.0,0.00882]
[1728496272790,0.0269872,61828.0,61827.0,0.170561]
[1728496273020,0.0269872,61828.0,61827.0,0.33139864]
[1728496273253,0.0269872,61828.0,61827.0,0.35439864]
[1728496274418,0.0269872,61828.0,61827.0,0.45139864]
[1728496274657,0.0289872,61828.0,61827.0,0.46439864]
[1728496274891,0.0279872,61828.0,61827.0,0.45839864]
[1728496275120,0.0269872,61828.0,61827.0,0.45139864]
[1728496275346,0.0289872,61828.0,61827.0,0.47939864]
[1728496276239,0.0289872,61828.0,61827.0,0.65731748]
[1728496276468,0.0279872,61828.0,61827.0,0.71802464]
[1728496276917,0.00364,61828.0,61827.0,0.65931748]
[1728496277130,0.00364,61828.0,61827.0,0.78042844]
[1728496277575,0.00364,61828.0,61827.0,0.75619873]
[1728496277782,0.00364,61828.0,61827.0,0.78040792]
[1728496277989,0.00364,61828.0,61827.0,0.65931748]
[1728496280253,0.00264,61828.0,61827.0,0.64531748]
[1728496280708,0.00164,61828.0,61827.0,0.64531748]
[1728496280931,0.00164,61828.0,61827.0,0.65931748]
[1728496281374,0.00164,61828.0,61827.0,0.7803031]
[1728496281590,0.00164,61828.0,61827.0,0.7663031]
[1728496282921,0.00164,61828.0,61827.0,0.64531748]
[1728496283145,0.00164,61828.0,61827.0,0.65931748]
[1728496284507,0.00164,61828.0,61827.0,0.66185123]
[1728496284742,0.00164,61828.0,61827.0,0.35861748]
[1728496284963,0.00164,61828.0,61827.0,0.35139864]
[1728496285232,0.02698302,61828.0,61827.0,0.35139864]
[1728496285687,0.02698302,61828.0,61827.0,0.33739864]
[1728496286392,0.02698302,61828.0,61827.0,0.35139864]
[1728496286635,0.02698302,61828.0,61827.0,0.35739864]
[1728496286883,0.02698302,61828.0,61827.0,0.182561]
[1728496287114,0.06278392,61828.0,61827.0,0.182561]
[1728496287380,0.02698302,61828.0,61827.0,0.182561]
[1728496287874,0.02698302,61828.0,61827.0,0.02782]
[1728496288122,0.18872202,61828.0,61827.0,0.02782]
[1728496288583,0.28772202,61828.0,61827.0,0.02782]
[1728496288832,0.28772202,61828.0,61827.0,0.00782]
[1728496289131,0.28772202,61828.0,61827.0,0.00482]
[1728496289616,0.28772202,61828.0,61827.0,0.00782]
[1728496289847,0.262379,61828.0,61827.0,0.00382]
[1728496290088,0.262379,61828.0,61827.0,0.00682]
[1728496292712,0.10064,61828.0,61827.0,0.00682]
[1728496293142,0.12598705,61828.0,61827.0,0.00682]
[1728496293144,0.28772605,61828.0,61827.0,0.00682]
[1728496295999,0.12598705,61828.0,61827.0,0.00682]
[1728496296737,0.28772605,61828.0,61827.0,0.00682]
[1728496297217,0.12598705,61828.0,61827.0,0.00682]
[1728496297492,0.12598705,61828.0,61827.0,0.32939864]
[1728496298239,0.02698705,61828.0,61827.0,0.32939864]
[1728496299701,0.00164,61828.0,61827.0,0.32939864]
[1728496299963,0.00164,61828.0,61827.0,0.35239864]
[1728496303161,0.02698609,61828.0,61827.0,0.35239864]
[1728496309837,0.00164,61828.0,61827.0,0.35239864]
[1728496311172,0.00164,61828.0,61827.0,0.00682]
[1728496311388,0.18254,61828.0,61827.0,0.168561]
[1728496312704,0.20788739,61828.0,61827.0,0.168561]
[1728496313139,0.12578739,61828.0,61827.0,0.168561]
[1728496313349,0.12578739,61828.0,61827.0,0.00682]
[1728496313517,0.12578739,61828.0,61827.0,0.168561]
[1728496319869,0.10044,61828.0,61827.0,0.168561]
[1728496321913,0.1668938,61828.0,61827.0,0.00682]
[1728496322099,0.1668938,61828.0,61827.0,0.168561]
[1728496322345,0.10044,61828.0,61827.0,0.168561]
[1728496322779,0.1257874,61828.0,61827.0,0.168561]
[1728496323889,0.0269874,61828.0,61827.0,0.35431444]
[1728496324109,0.0269874,61828.0,61827.0,0.35239864]
[1728496325071,0.0269874,61828.0,61827.0,0.34939864]
[1728496325505,0.0269874,61828.0,61827.0,0.45639864]
[1728496326186,0.0269874,61828.0,61827.0,0.45739864]
[1728496327280,0.0269874,61828.0,61827.0,0.45639864]
[1728496327756,0.0269874,61828.0,61827.0,0.46739864]
[1728496329755,0.00164,61828.0,61827.0,0.46739864]
[1728496332888,0.02698333,61828.0,61827.0,0.46939864]
[1728496333130,0.02698333,61828.0,61827.0,0.46739864]
[1728496333396,0.02698333,61828.0,61827.0,0.64839864]
[1728496333627,0.02698333,61828.0,61827.0,0.54419864]
[1728496333908,0.02698333,61828.0,61827.0,0.36739864]
[1728496334148,0.28852233,61828.0,61827.0,0.02182]
[1728496334857,0.55526977,61828.0,61827.0,0.00082]
[1728496335077,0.55526977,61828.0,61827.0,0.00482]
[1728496335303,0.36812233,61828.0,61827.0,0.00882]
[1728496335525,0.36812233,61828.0,61827.0,0.00482]
[1728496335737,0.36812233,61828.0,61827.0,0.00782]
[1728496335961,0.36812233,61828.0,61827.0,0.01082]
[1728496339230,0.99183422,61828.0,61827.0,0.01082]
[1728496339485,0.434541,61827.0,61826.0,0.00082]
[1728496339705,0.62169644,61824.0,61823.0,0.000819]
[1728496339951,0.83301352,61824.0,61823.0,0.000819]
[1728496340176,0.84064936,61824.0,61823.0,0.000819]
[1728496340612,1.01478389,61824.0,61823.0,0.000819]
[1728496341050,1.01278389,61824.0,61823.0,0.000819]
[1728496341269,1.001487,61824.0,61823.0,0.000819]
[1728496341488,1.003487,61824.0,61823.0,0.001819]
[1728496342160,1.01478389,61824.0,61823.0,0.001819]
[1728496342677,1.01978389,61824.0,61823.0,0.002819]
[1728496343115,1.02178389,61824.0,61823.0,0.002819]
[1728496343352,1.01478389,61824.0,61823.0,0.000819]
[1728496344057,1.04013915,61824.0,61823.0,0.000819]
[1728496344284,1.06213915,61824.0,61823.0,0.002819]
[1728496344509,1.06013915,61824.0,61823.0,0.002819]
[1728496344753,0.88800462,61824.0,61823.0,0.002819]
[1728496345210,0.90130152,61824.0,61823.0,0.002819]
[1728496345463,1.02223998,61824.0,61823.0,0.002819]
[1728496345718,1.06213916,61824.0,61823.0,0.002819]
[1728496347032,1.06213916,61824.0,61810.0,0.001638]
[1728496347033,0.63542244,61814.0,61810.0,0.001638]
[1728496347271,0.63542244,61814.0,61801.0,0.24236353]
[1728496347272,0.005,61802.0,61801.0,0.24236353]
[1728496347505,0.63325444,61802.0,61801.0,0.24236353]
[1728496347773,0.266809,61801.0,61793.0,0.24400353]
[1728496348285,0.2781059,61801.0,61793.0,0.24400353]
[1728496348540,0.44641262,61801.0,61793.0,0.24400353]
[1728496349473,0.17830911,61801.0,61800.0,0.00264]
[1728496349967,0.18430911,61801.0,61800.0,0.00264]
[1728496351398,0.02250011,61801.0,61800.0,0.32528964]
[1728496351647,0.015,61801.0,61800.0,0.32528964]
[1728496351876,0.015,61801.0,61800.0,0.16347764]
[1728496352138,0.04776894,61801.0,61800.0,0.32528964]
[1728496352416,0.03876894,61801.0,61800.0,0.32428964]
[1728496352615,0.03876894,61801.0,61800.0,0.32528964]
[1728496352848,0.03876894,61801.0,61800.0,0.32428964]
[1728496353067,0.04276894,61801.0,61800.0,0.32428964]
[1728496353312,0.04776894,61801.0,61800.0,0.32528964]
[1728496353541,0.04776894,61801.0,61800.0,0.32428964]
[1728496353542,0.03276894,61801.0,61800.0,0.32428964]
[1728496353793,0.0273587,61801.0,61800.0,0.32428964]
[1728496354026,0.03476891,61801.0,61800.0,0.32428964]
[1728496354298,0.03376891,61801.0,61800.0,0.34728964]
[1728496354537,0.03476891,61801.0,61800.0,0.42748964]
[1728496354766,0.0273587,61801.0,61800.0,0.42748964]
[1728496355011,0.37531514,61801.0,61800.0,0.16247764]
[1728496355249,0.37531514,61801.0,61800.0,0.00164]
[1728496355250,0.44520745,61801.0,61800.0,0.00164]
[1728496355471,0.62981161,61801.0,61800.0,0.00664]
[1728496356148,0.63961428,61801.0,61800.0,0.00164]
[1728496356377,0.64561428,61801.0,61800.0,0.00264]
[1728496356610,0.65061428,61801.0,61800.0,0.00264]
[1728496359509,0.65093862,61801.0,61800.0,0.00264]
[1728496359743,0.62557992,61801.0,61800.0,0.00264]
[1728496360188,0.55568761,61801.0,61800.0,0.00264]
[1728496360897,0.27471316,61801.0,61800.0,0.00264]
[1728496361543,0.18131316,61801.0,61800.0,0.00264]
[1728496362634,0.04486463,61801.0,61800.0,0.32528964]
[1728496362844,0.03736047,61801.0,61800.0,0.32528964]
[1728496363517,0.03736047,61801.0,61800.0,0.43098964]
[1728496363730,0.03236047,61801.0,61800.0,0.43098964]
[1728496363968,0.02536047,61801.0,61800.0,0.42998964]
[1728496364182,0.02536047,61801.0,61800.0,0.43198964]
[1728496364402,0.02536047,61801.0,61800.0,0.43298964]
[1728496364847,0.02536047,61801.0,61800.0,0.43198964]
[1728496365063,0.02536047,61801.0,61800.0,0.40898964]
[1728496365976,0.02536047,61801.0,61800.0,0.40698964]
[1728496366227,0.02536047,61801.0,61800.0,0.24517764]
[1728496366463,0.02536047,61801.0,61800.0,0.32828964]
[1728496366946,0.02536047,61801.0,61800.0,0.33128964]
[1728496367661,0.009669,61801.0,61800.0,0.33128964]
[1728496367900,0.009669,61801.0,61800.0,0.16947764]
[1728496368129,0.2209851,61801.0,61800.0,0.00864]
[1728496368579,0.009669,61801.0,61800.0,0.32828964]
[1728496368795,0.009669,61801.0,61800.0,0.40978964]
[1728496369443,0.009669,61801.0,61800.0,0.40578964]
[1728496369873,0.009669,61801.0,61800.0,0.41078964]
[1728496370083,0.009669,61801.0,61800.0,0.41478964]
[1728496370298,0.009669,61801.0,61800.0,0.40978964]
[1728496370724,0.009669,61801.0,61800.0,0.41078964]
[1728496371148,0.009669,61801.0,61800.0,0.40578964]
[1728496371335,0.010669,61801.0,61800.0,0.41678964]
[1728496371802,0.010669,61801.0,61800.0,0.41178964]
[1728496372011,0.011669,61801.0,61800.0,0.41778964]
[1728496373566,0.002,61801.0,61800.0,0.41778964]
[1728496374423,0.002,61801.0,61800.0,0.33628964]
[1728496375853,0.02735752,61801.0,61800.0,0.33628964]
[1728496376088,0.02735752,61801.0,61800.0,0.17447764]
[1728496376801,0.02735752,61801.0,61800.0,0.33628964]
[1728496379850,0.002,61801.0,61800.0,0.35928964]
[1728496380767,0.001,61801.0,61800.0,0.35328964]
[1728496381246,0.24400353,61809.0,61806.0,0.161794]
[1728496381501,0.24400353,61809.0,61806.0,0.16083764]
[1728496381728,0.00164,61809.0,61806.0,0.16083764]
[1728496381983,0.161793,61808.0,61806.0,0.16083764]
[1728496382224,0.32522,61809.0,61806.0,0.16083764]
[1728496382225,0.00164,61809.0,61806.0,0.16083764]
[1728496382731,0.161793,61808.0,61806.0,0.16083764]
[1728496383466,0.161793,61807.0,61806.0,0.001]
[1728496383684,0.261093,61807.0,61806.0,0.001]
[1728496384199,0.161797,61806.0,61802.0,0.161806]
[1728496384417,0.422888,61807.0,61803.0,0.16083764]
[1728496384418,0.161799,61805.0,61803.0,0.16083764]
[1728496384657,0.323589,61807.0,61803.0,0.16083764]
[1728496384879,0.323597,61806.0,61803.0,0.16083764]
[1728496385111,0.02699632,61809.0,61803.0,0.16083764]
[1728496385338,0.161801,61804.0,61803.0,0.16083764]
[1728496385564,0.21303953,61804.0,61803.0,0.16083764]
[1728496385822,0.21303953,61804.0,61800.0,0.00164]
[1728496385823,0.161809,61801.0,61800.0,0.00164]
[1728496386514,0.18716881,61801.0,61800.0,0.00164]
[1728496387207,0.18716881,61801.0,61800.0,0.00364]
[1728496388836,0.27573184,61801.0,61800.0,0.00364]
[1728496389791,0.25037203,61801.0,61800.0,0.00664]
[1728496390491,0.34247203,61801.0,61800.0,0.00664]
[1728496390724,0.42087203,61801.0,61800.0,0.00664]
[1728496391177,0.42087203,61801.0,61800.0,0.00364]
[1728496391407,0.42687203,61801.0,61800.0,0.00364]
[1728496391673,0.006,61801.0,61800.0,0.51343708]
[1728496392343,0.006,61801.0,61800.0,0.32428964]
[1728496392560,0.013,61801.0,61800.0,0.32528964]
[1728496392789,0.013,61801.0,61800.0,0.32428964]
[1728496393001,0.007,61801.0,61800.0,0.32428964]
[1728496393240,0.017,61801.0,61800.0,0.32428964]
[1728496393493,0.017,61801.0,61800.0,0.00164]
[1728496393494,0.178809,61801.0,61800.0,0.00164]
[1728496393698,0.264909,61801.0,61800.0,0.00164]
[1728496394127,0.29327057,61801.0,61800.0,0.00164]
[1728496395494,0.34172522,61801.0,61800.0,0.00164]
[1728496395707,0.39227073,61801.0,61800.0,0.00164]
[1728496397329,0.40356752,61801.0,61800.0,0.00164]
[1728496397545,0.56437413,61801.0,61800.0,0.00164]
[1728496398409,0.74222478,61801.0,61800.0,0.00164]
[1728496398852,0.69377013,61801.0,61800.0,0.00164]
[1728496399066,0.53296352,61801.0,61800.0,0.00164]
[1728496399297,1.06033635,61801.0,61800.0,0.00164]
[1728496399523,0.88190116,61801.0,61800.0,0.00164]
[1728496399743,1.641854,61801.0,61800.0,0.00164]
[1728496399975,1.641854,61801.0,61793.0,0.00164]
[1728496399976,0.2792,61794.0,61793.0,0.00164]
[1728496400186,0.83955859,61794.0,61793.0,0.00164]
[1728496402221,1.0051713,61794.0,61793.0,0.00264]
[1728496402425,0.85985545,61794.0,61793.0,0.00264]
[1728496402672,1.02066206,61794.0,61793.0,0.00264]
[1728496402881,1.04602968,61794.0,61793.0,0.00264]
[1728496403102,1.20534553,61794.0,61793.0,0.00364]
[1728496403316,1.20534553,61794.0,61780.0,0.00082]
[1728496403317,0.341262,61781.0,61780.0,0.00082]
[1728496403532,0.5127586,61781.0,61780.0,0.00082]
[1728496403748,0.51275533,61781.0,61780.0,0.00082]
[1728496403965,0.39180751,61781.0,61780.0,0.00082]
[1728496404172,0.41717836,61781.0,61780.0,0.00082]
[1728496404380,0.513879,61781.0,61780.0,0.00082]
[1728496404809,0.007,61779.0,61765.0,0.00082]
[1728496405016,0.76109759,61779.0,61765.0,0.00082]
[1728496405229,0.8818936,61779.0,61765.0,0.00082]
[1728496405452,0.69690253,61779.0,61770.0,0.24236353]
[1728496405675,1.04330127,61779.0,61765.0,0.00082]
[1728496405919,0.161896,61768.0,61765.0,0.00082]
[1728496406135,0.35104344,61768.0,61765.0,0.00082]
[1728496406366,0.71368108,61768.0,61765.0,0.00082]
[1728496406582,0.57821954,61768.0,61765.0,0.00082]
[1728496406867,0.73905718,61768.0,61765.0,0.00082]
[1728496407302,0.58521954,61768.0,61765.0,0.00082]
[1728496407506,0.59321954,61768.0,61765.0,0.00082]
[1728496407724,0.59121954,61768.0,61765.0,0.00082]
[1728496407934,0.92416068,61768.0,61765.0,0.00082]
[1728496408179,0.92616068,61768.0,61765.0,0.00082]
[1728496408390,0.91916068,61768.0,61765.0,0.00082]
[1728496408817,0.75505718,61768.0,61765.0,0.00082]
[1728496409247,0.58821954,61768.0,61765.0,0.00082]
[1728496409456,0.58621954,61768.0,61765.0,0.00082]
[1728496409661,0.57484344,61768.0,61765.0,0.00082]
[1728496411580,0.73568108,61768.0,61765.0,0.00082]
[1728496411787,0.98398459,61768.0,61765.0,0.00082]
[1728496412909,0.98398459,61768.0,61744.0,0.0813]
[1728496412910,0.16194,61751.0,61738.0,0.00082]
[1728496413137,0.161964,61742.0,61738.0,0.00082]
[1728496413388,0.47280784,61742.0,61738.0,0.00082]
[1728496413596,0.4523604,61742.0,61738.0,0.00082]
[1728496413815,0.80034548,61742.0,61738.0,0.00082]
[1728496414241,0.82573492,61742.0,61738.0,0.00082]
[1728496414733,0.82573492,61742.0,61729.0,0.005]
[1728496414734,0.16199,61732.0,61729.0,0.005]
[1728496414945,0.40043244,61732.0,61729.0,0.005]
[1728496415162,0.34913744,61732.0,61729.0,0.005]
[1728496415599,0.37452896,61732.0,61729.0,0.005]
[1728496415814,0.37652896,61732.0,61729.0,0.005]
[1728496416042,0.37452896,61732.0,61729.0,0.005]
[1728496416259,0.38852896,61732.0,61729.0,0.005]
[1728496416471,0.52527056,61732.0,61729.0,0.005]
[1728496416892,0.39952896,61732.0,61729.0,0.005]
[1728496417163,0.37452896,61732.0,61729.0,0.005]
[1728496417575,0.19738152,61732.0,61729.0,0.005]
[1728496417820,0.04239152,61732.0,61729.0,0.005]
[1728496418032,0.04239152,61732.0,61731.0,0.16165764]
[1728496418252,0.03539152,61732.0,61731.0,0.00082]
[1728496418685,0.04339152,61732.0,61731.0,0.16165764]
[1728496418897,0.03339152,61732.0,61731.0,0.16165764]
[1728496419124,0.03339152,61732.0,61731.0,0.32365064]
[1728496419125,0.03539152,61732.0,61731.0,0.32365064]
[1728496419345,0.02539152,61732.0,61731.0,0.16165764]
[1728496419569,0.02539152,61732.0,61731.0,0.32365064]
[1728496419783,0.161975,61738.0,61734.0,0.161984]
[1728496420012,0.40432953,61742.0,61739.0,0.16197]
[1728496420232,0.40432953,61742.0,61739.0,0.16083764]
[1728496420233,0.24236353,61742.0,61739.0,0.16083764]
[1728496420465,0.22138379,61748.0,61741.0,0.161966]
[1728496420690,0.005,61755.0,61740.0,0.323939]
[1728496420691,0.42951097,61756.0,61742.0,0.16407684]
[1728496420908,0.161941,61751.0,61747.0,0.161948]
[1728496421151,0.40431053,61749.0,61746.0,0.161953]
[1728496421356,0.323879,61752.0,61746.0,0.16083764]
[1728496421597,0.24236353,61756.0,61747.0,0.16083764]
[1728496421865,0.161931,61755.0,61751.0,0.161939]
[1728496422079,0.0001,61752.0,61747.0,0.079]
[1728496422306,0.0001,61752.0,61751.0,0.16194]
[1728496422523,0.0001,61752.0,61747.0,0.079]
[1728496422524,0.323884,61751.0,61747.0,0.079]
[1728496422735,0.0001,61752.0,61750.0,0.16194]
[1728496423181,0.0001,61752.0,61748.0,0.16083764]
[1728496423399,0.161948,61748.0,61747.0,0.079]
[1728496423619,0.161954,61746.0,61742.0,0.161964]
[1728496423839,0.06740434,61752.0,61743.0,0.32279864]
[1728496423840,0.161952,61747.0,61743.0,0.32279864]
[1728496424055,0.161948,61748.0,61747.0,0.001]
[1728496424267,0.20399798,61748.0,61747.0,0.001]
[1728496424511,0.20399798,61748.0,61745.0,0.161955]
[1728496424512,0.22937907,61748.0,61745.0,0.161955]
[1728496424727,0.02538109,61748.0,61746.0,0.16083764]
[1728496425146,0.161951,61747.0,61746.0,0.16083764]
[1728496425375,0.485865,61746.0,61740.0,0.0796]
[1728496425613,0.323913,61745.0,61741.0,0.16083764]
[1728496425875,0.161959,61744.0,61741.0,0.32280264]
[1728496426337,0.323911,61746.0,61741.0,0.16083764]
[1728496426580,0.161951,61747.0,61743.0,0.16196]
[1728496426812,0.485866,61746.0,61741.0,0.32280164]
[1728496427064,0.25351506,61747.0,61743.0,0.161961]
[1728496427294,0.25351506,61747.0,61742.0,0.323927]
[1728496427295,0.02538109,61748.0,61747.0,0.161951]
[1728496427652,0.02538109,61748.0,61747.0,0.32278864]
[1728496427756,0.02538109,61748.0,61747.0,0.16083764]
[1728496428457,0.02538109,61748.0,61747.0,0.16283764]
[1728496428925,0.02538109,61748.0,61747.0,0.16083764]
[1728496429156,0.02538109,61748.0,61747.0,0.32578864]
[1728496429625,0.0001,61752.0,61747.0,0.18683764]
[1728496429861,0.0001,61752.0,61751.0,0.16194]
[1728496430098,0.0001,61752.0,61751.0,0.32277764]
[1728496430783,0.002,61748.0,61747.0,0.003]
[1728496431025,0.002,61748.0,61747.0,0.16083764]
[1728496431254,0.0001,61752.0,61747.0,0.32278864]
[1728496431463,0.161944,61750.0,61748.0,0.16083764]
[1728496431703,0.16204,61752.0,61751.0,0.003]
[1728496432173,0.16204,61752.0,61743.0,0.238261]
[1728496432174,0.161952,61747.0,61743.0,0.238261]
[1728496432400,0.323888,61750.0,61744.0,0.16083764]
[1728496432401,0.323899,61748.0,61744.0,0.16083764]
[1728496432674,0.485847,61748.0,61747.0,0.002]
[1728496432893,0.161944,61750.0,61747.0,0.002]
[1728496433124,0.161944,61750.0,61747.0,0.163951]
[1728496433873,0.162039,61752.0,61747.0,0.3239]
[1728496434107,0.16304,61752.0,61748.0,0.161948]
[1728496434347,0.02537943,61750.0,61748.0,0.161948]
[1728496434587,0.02537943,61750.0,61748.0,0.161947]
[1728496434817,0.02537943,61750.0,61747.0,0.002]
[1728496435062,0.02537943,61750.0,61748.0,0.161948]
[1728496435310,0.02537943,61750.0,61749.0,0.32278264]
[1728496436481,0.02537943,61750.0,61749.0,0.34578264]
[1728496437230,0.02537943,61750.0,61749.0,0.34778264]
[1728496437946,0.02537943,61750.0,61749.0,0.70587923]
[1728496438598,0.02537943,61750.0,61749.0,0.70387923]
[1728496439477,0.02537943,61750.0,61749.0,0.70687923]
[1728496439478,0.02637943,61750.0,61749.0,0.70687923]
[1728496439695,0.0001,61752.0,61750.0,0.023]
[1728496439912,0.0001,61752.0,61751.0,0.34577764]
[1728496440851,0.0011,61752.0,61751.0,0.34577764]
[1728496441314,0.0001,61752.0,61751.0,0.35077764]
[1728496441539,0.0001,61752.0,61751.0,0.45077764]
[1728496441794,0.0011,61752.0,61751.0,0.45677764]
[1728496442007,0.0021,61752.0,61751.0,0.45677764]
[1728496442231,0.0011,61752.0,61751.0,0.45677764]
[1728496442671,0.0021,61752.0,61751.0,0.45977764]
[1728496443172,0.0031,61752.0,61751.0,0.46277764]
[1728496443591,0.0021,61752.0,61751.0,0.45677764]
[1728496444037,0.0031,61752.0,61751.0,0.46277764]
[1728496444254,0.02847482,61752.0,61751.0,0.46277764]
[1728496446159,0.02847482,61752.0,61751.0,0.45777764]
[1728496446394,0.02847482,61752.0,61751.0,0.33477764]
[1728496447343,0.02747482,61752.0,61751.0,0.32877764]
[1728496447590,0.02747482,61752.0,61751.0,0.35177764]
[1728496447839,0.02847482,61752.0,61751.0,0.35677764]
[1728496448374,0.02847482,61752.0,61751.0,0.17183764]
[1728496448643,0.18941282,61752.0,61751.0,0.006]
[1728496448896,0.18941282,61752.0,61748.0,0.000821]
[1728496448897,0.161945,61749.0,61748.0,0.000821]
[1728496449893,0.325622,61752.0,61748.0,0.000821]
[1728496450144,0.161945,61749.0,61748.0,0.000821]
[1728496450387,0.326622,61752.0,61748.0,0.000821]
[1728496450641,0.161945,61749.0,61748.0,0.000821]
[1728496450882,0.16194,61751.0,61748.0,0.163768]
[1728496451119,0.163681,61752.0,61748.0,0.001821]
[1728496451371,0.001742,61752.0,61749.0,0.16083764]
[1728496451621,0.165681,61752.0,61749.0,0.32278264]
[1728496451848,0.003742,61752.0,61749.0,0.32278264]
[1728496452076,0.003742,61752.0,61749.0,0.16083764]
[1728496452077,0.02912105,61752.0,61749.0,0.16083764]
[1728496452323,0.03212105,61752.0,61750.0,0.161942]
[1728496452564,0.19405905,61752.0,61750.0,0.16083764]
[1728496452800,0.19105905,61752.0,61750.0,0.16083764]
[1728496453070,0.02912105,61752.0,61750.0,0.16083764]
[1728496453368,0.19106005,61752.0,61750.0,0.16083764]
[1728496453594,0.11741576,61751.0,61750.0,0.16083764]
[1728496453832,0.27935576,61751.0,61750.0,0.16083764]
[1728496454065,0.03012105,61752.0,61751.0,0.16194]
[1728496454326,0.03012105,61752.0,61751.0,0.32277764]
[1728496454594,0.02912105,61752.0,61751.0,0.34577764]
[1728496455562,0.02712105,61752.0,61751.0,0.34577764]
[1728496456075,0.02912105,61752.0,61751.0,0.34577764]
[1728496456332,0.02712105,61752.0,61751.0,0.34577764]
[1728496456601,0.02712105,61752.0,61751.0,0.35477764]
[1728496456602,0.02812105,61752.0,61751.0,0.35477764]
[1728496456851,0.02812105,61752.0,61751.0,0.35177764]
[1728496457317,0.02912105,61752.0,61751.0,0.35677764]
[1728496459668,0.003742,61752.0,61751.0,0.35677764]
[1728496462721,0.02911891,61752.0,61751.0,0.35677764]